[Event "Titled Tuesday Blitz February 22 Late 2022"]
[White "Sadhwani, Raunak"]
[Black "Nakamura, Hikaru"]
[WhiteFideId "35093487"]
[BlackFideId "2016192"]
[WhiteElo "2616"]
[BlackElo "2850"]
[Result "1/2-1/2"]
[Round "09"]
[TimeControl "180+1"]
[Date "2022.02.22"]
[WhiteClock "0:00:11"]
[BlackClock "0:00:06"]

1. d4 {[%clk 0:03:00]}  g6 {[%clk 0:02:58]} 2. e4 {[%clk 0:02:59]}  Bg7 {[%clk 0:02:58]} 3. Nc3 {[%clk 0:03:00]}  a6 {[%clk 0:02:58]} 4. Be3 {[%clk 0:03:00]}  b5 {[%clk 0:02:58]} 5. Qd2 {[%clk 0:03:00]}  Bb7 {[%clk 0:02:59]} 6. f3 {[%clk 0:03:01]}  d6 {[%clk 0:02:59]} 7. h4 {[%clk 0:03:00]}  h5 {[%clk 0:03:00]} 8. Nh3 {[%clk 0:03:00]}  e6 {[%clk 0:03:01]} 9. Ng5 {[%clk 0:03:00]}  Nd7 {[%clk 0:03:01]} 10. O-O-O {[%clk 0:03:00]}  Nb6 {[%clk 0:03:02]} 11. b3 {[%clk 0:03:00]}  Nf6 {[%clk 0:03:02]} 12. Kb1 {[%clk 0:02:58]}  Qe7 {[%clk 0:03:02]} 13. g3 {[%clk 0:02:50]}  c5 {[%clk 0:02:54]} 14. dxc5 {[%clk 0:02:41]}  dxc5 {[%clk 0:02:55]} 15. Bf4 {[%clk 0:02:21]}  e5 {[%clk 0:01:55]} 16. Be3 {[%clk 0:02:18]}  b4 {[%clk 0:01:55]} 17. Ne2 {[%clk 0:02:12]}  Rc8 {[%clk 0:01:47]} 18. Qd6 {[%clk 0:02:12]}  Rc6 {[%clk 0:01:43]} 19. Qxe7+ {[%clk 0:01:59]}  Kxe7 {[%clk 0:01:44]} 20. Nc1 {[%clk 0:01:47]}  Nfd7 {[%clk 0:01:43]} 21. Nd3 {[%clk 0:01:46]}  f6 {[%clk 0:01:37]} 22. Nh3 {[%clk 0:01:46]}  a5 {[%clk 0:01:37]} 23. Nb2 {[%clk 0:01:47]}  Ra8 {[%clk 0:01:37]} 24. Nf2 {[%clk 0:01:27]}  Ba6 {[%clk 0:01:32]} 25. Bxa6 {[%clk 0:01:20]}  Rxa6 {[%clk 0:01:32]} 26. g4 {[%clk 0:01:21]}  c4 {[%clk 0:01:16]} 27. gxh5 {[%clk 0:01:21]}  gxh5 {[%clk 0:01:17]} 28. Rhg1 {[%clk 0:01:21]}  Bf8 {[%clk 0:01:16]} 29. Rg8 {[%clk 0:01:08]}  a4 {[%clk 0:01:16]} 30. Nxa4 {[%clk 0:00:57]}  Nxa4 {[%clk 0:01:16]} 31. bxa4 {[%clk 0:00:58]}  Nb6 {[%clk 0:00:46]} 32. Bxb6 {[%clk 0:00:47]}  Rcxb6 {[%clk 0:00:47]} 33. Nh1 {[%clk 0:00:26]}  b3 {[%clk 0:00:46]} 34. cxb3 {[%clk 0:00:27]}  cxb3 {[%clk 0:00:47]} 35. a3 {[%clk 0:00:27]}  Kf7 {[%clk 0:00:43]} 36. Rh8 {[%clk 0:00:27]}  Bxa3 {[%clk 0:00:32]} 37. Ng3 {[%clk 0:00:24]}  Rd6 {[%clk 0:00:32]} 38. Rg1 {[%clk 0:00:22]}  Bc5 {[%clk 0:00:27]} 39. Rc1 {[%clk 0:00:22]}  Rdc6 {[%clk 0:00:18]} 40. Nf5 {[%clk 0:00:18]}  Bd4 {[%clk 0:00:18]} 41. Rh7+ {[%clk 0:00:15]}  Ke8 {[%clk 0:00:18]} 42. Rh8+ {[%clk 0:00:11]}  Kd7 {[%clk 0:00:19]} 43. Rh7+ {[%clk 0:00:12]}  Kd8 {[%clk 0:00:19]} 44. Rxc6 {[%clk 0:00:09]}  Rxc6 {[%clk 0:00:19]} 45. Rb7 {[%clk 0:00:09]}  Rc3 {[%clk 0:00:14]} 46. Nxd4 {[%clk 0:00:05]}  exd4 {[%clk 0:00:14]} 47. Kb2 {[%clk 0:00:06]}  Rxf3 {[%clk 0:00:13]} 48. Rxb3 {[%clk 0:00:07]}  Rf4 {[%clk 0:00:13]} 49. Rb6 {[%clk 0:00:05]}  Kc7 {[%clk 0:00:13]} 50. a5 {[%clk 0:00:05]}  Rxh4 {[%clk 0:00:12]} 51. Rxf6 {[%clk 0:00:05]}  Rxe4 {[%clk 0:00:12]} 52. Rh6 {[%clk 0:00:05]}  Re5 {[%clk 0:00:12]} 53. a6 {[%clk 0:00:06]}  d3 {[%clk 0:00:10]} 54. Kc3 {[%clk 0:00:04]}  Rd5 {[%clk 0:00:11]} 55. Kd2 {[%clk 0:00:04]}  Kb8 {[%clk 0:00:11]} 56. Rh7 {[%clk 0:00:05]}  Ka8 {[%clk 0:00:11]} 57. a7 {[%clk 0:00:05]}  h4 {[%clk 0:00:08]} 58. Rxh4 {[%clk 0:00:05]}  Kxa7 {[%clk 0:00:09]} 59. Rh3 {[%clk 0:00:06]}  Kb6 {[%clk 0:00:10]} 60. Rxd3 {[%clk 0:00:07]}  Ra5 {[%clk 0:00:10]} 61. Kc2 {[%clk 0:00:07]}  Kc5 {[%clk 0:00:10]} 62. Rc3+ {[%clk 0:00:08]}  Kd4 {[%clk 0:00:10]} 63. Rd3+ {[%clk 0:00:08]}  Ke4 {[%clk 0:00:11]} 64. Rc3 {[%clk 0:00:09]}  Ra4 {[%clk 0:00:11]} 65. Kb3 {[%clk 0:00:09]}  Ra7 {[%clk 0:00:10]} 66. Rc4+ {[%clk 0:00:09]}  Kd3 {[%clk 0:00:11]} 67. Rc3+ {[%clk 0:00:10]}  Kd2 {[%clk 0:00:11]} 68. Rc2+ {[%clk 0:00:10]}  Kd1 {[%clk 0:00:11]} 69. Rc3 {[%clk 0:00:10]}  Rb7+ {[%clk 0:00:11]} 70. Kc4 {[%clk 0:00:10]}  Ke2 {[%clk 0:00:12]} 71. Rh3 {[%clk 0:00:10]}  Rg7 {[%clk 0:00:12]} 72. Kd4 {[%clk 0:00:10]}  Kf2 {[%clk 0:00:13]} 73. Rc3 {[%clk 0:00:10]}  Ra7 {[%clk 0:00:13]} 74. Kc4 {[%clk 0:00:11]}  Ke2 {[%clk 0:00:14]} 75. Rh3 {[%clk 0:00:11]}  Ra4+ {[%clk 0:00:14]} 76. Kd5 {[%clk 0:00:10]}  Rg4 {[%clk 0:00:15]} 77. Rb3 {[%clk 0:00:10]}  Rg5+ {[%clk 0:00:15]} 78. Kc4 {[%clk 0:00:10]}  Rg4+ {[%clk 0:00:14]} 79. Kd5 {[%clk 0:00:10]}  Rh4 {[%clk 0:00:14]} 80. Ke5 {[%clk 0:00:10]}  Kd2 {[%clk 0:00:13]} 81. Kd5 {[%clk 0:00:11]}  Kc2 {[%clk 0:00:12]} 82. Rg3 {[%clk 0:00:11]}  Ra4 {[%clk 0:00:10]} 83. Rf3 {[%clk 0:00:11]}  Kd2 {[%clk 0:00:10]} 84. Rg3 {[%clk 0:00:11]}  Ke2 {[%clk 0:00:09]} 85. Rb3 {[%clk 0:00:12]}  Rh4 {[%clk 0:00:09]} 86. Rc3 {[%clk 0:00:12]}  Rh5+ {[%clk 0:00:08]} 87. Ke4 {[%clk 0:00:11]}  Kd2 {[%clk 0:00:09]} 88. Rd3+ {[%clk 0:00:11]}  Kc2 {[%clk 0:00:10]} 89. Rg3 {[%clk 0:00:11]}  Ra5 {[%clk 0:00:04]} 90. Rf3 {[%clk 0:00:11]}  Ra4+ {[%clk 0:00:03]} 91. Kd5 {[%clk 0:00:11]}  Ra7 {[%clk 0:00:04]} 92. Rg3 {[%clk 0:00:11]}  Kd2 {[%clk 0:00:04]} 93. Rb3 {[%clk 0:00:11]}  Ra5+ {[%clk 0:00:05]} 94. Ke4 {[%clk 0:00:11]}  Kc2 {[%clk 0:00:06]} 95. Rg3 {[%clk 0:00:10]}  Rh5 {[%clk 0:00:07]} 96. Rf3 {[%clk 0:00:10]}  Kd2 {[%clk 0:00:07]} 97. Rg3 {[%clk 0:00:10]}  Rh4+ {[%clk 0:00:07]} 98. Kd5 {[%clk 0:00:10]}  Ke2 {[%clk 0:00:07]} 99. Rb3 {[%clk 0:00:10]}  Ra4 {[%clk 0:00:06]} 100. Rg3 {[%clk 0:00:10]}  Ra5+ {[%clk 0:00:03]} 101. Ke4 {[%clk 0:00:10]}  Ra4+ {[%clk 0:00:04]} 102. Kd5 {[%clk 0:00:11]}  Rh4 {[%clk 0:00:04]} 103. Rb3 {[%clk 0:00:11]}  Kf2 {[%clk 0:00:05]} 104. Ra3 {[%clk 0:00:11]}  Ke1 {[%clk 0:00:05]} 105. Re3+ {[%clk 0:00:11]}  Kd2 {[%clk 0:00:05]} 106. Rg3 {[%clk 0:00:11]}  Ke2 {[%clk 0:00:06]} 1/2-1/2


[Site "https://www.chess.com"]

[Event "Titled Tuesday Blitz February 22 Late 2022"]
[White "Sarana, Alexey"]
[Black "Cardoso Cardoso, Jose Gabriel"]
[WhiteFideId "24133795"]
[BlackFideId "4430492"]
[WhiteElo "2665"]
[BlackElo "2451"]
[Result "1-0"]
[Round "09"]
[TimeControl "180+1"]
[Date "2022.02.22"]
[WhiteClock "0:00:34"]
[BlackClock "0:00:01"]

1. d4 {[%clk 0:03:00]}  Nf6 {[%clk 0:02:59]} 2. c4 {[%clk 0:03:01]}  g6 {[%clk 0:02:54]} 3. Nc3 {[%clk 0:03:01]}  Bg7 {[%clk 0:02:54]} 4. e4 {[%clk 0:03:01]}  d6 {[%clk 0:02:54]} 5. Be2 {[%clk 0:03:02]}  O-O {[%clk 0:02:45]} 6. Be3 {[%clk 0:03:00]}  c6 {[%clk 0:02:27]} 7. Nf3 {[%clk 0:02:59]}  a6 {[%clk 0:02:25]} 8. a4 {[%clk 0:02:54]}  a5 {[%clk 0:02:23]} 9. O-O {[%clk 0:02:54]}  Na6 {[%clk 0:02:22]} 10. h3 {[%clk 0:02:55]}  e5 {[%clk 0:02:17]} 11. dxe5 {[%clk 0:02:37]}  dxe5 {[%clk 0:02:15]} 12. Qxd8 {[%clk 0:02:37]}  Rxd8 {[%clk 0:02:15]} 13. Bb6 {[%clk 0:02:19]}  Re8 {[%clk 0:02:14]} 14. Nd2 {[%clk 0:02:17]}  Nd7 {[%clk 0:01:54]} 15. Bxa5 {[%clk 0:02:16]}  b6 {[%clk 0:01:50]} 16. Nb3 {[%clk 0:02:11]}  bxa5 {[%clk 0:01:49]} 17. Nxa5 {[%clk 0:02:12]}  Nb4 {[%clk 0:01:45]} 18. Nb3 {[%clk 0:02:10]}  Nc2 {[%clk 0:01:45]} 19. Ra2 {[%clk 0:02:03]}  Nd4 {[%clk 0:01:43]} 20. Nd2 {[%clk 0:02:03]}  Bf8 {[%clk 0:01:36]} 21. Rc1 {[%clk 0:01:59]}  Bb4 {[%clk 0:01:35]} 22. Bf1 {[%clk 0:02:00]}  Nc5 {[%clk 0:01:35]} 23. Rd1 {[%clk 0:01:56]}  Be6 {[%clk 0:01:34]} 24. Ndb1 {[%clk 0:01:46]}  Red8 {[%clk 0:01:34]} 25. Rc1 {[%clk 0:01:44]}  Ndb3 {[%clk 0:01:33]} 26. Rc2 {[%clk 0:01:40]}  Na5 {[%clk 0:01:24]} 27. Nd2 {[%clk 0:01:34]}  Bxc3 {[%clk 0:01:22]} 28. bxc3 {[%clk 0:01:34]}  Rab8 {[%clk 0:01:17]} 29. f3 {[%clk 0:01:33]}  Ncb3 {[%clk 0:01:12]} 30. Rab2 {[%clk 0:01:14]}  Nxd2 {[%clk 0:01:11]} 31. Rxd2 {[%clk 0:01:14]}  Rxb2 {[%clk 0:01:10]} 32. Rxd8+ {[%clk 0:01:14]}  Kg7 {[%clk 0:01:10]} 33. c5 {[%clk 0:01:13]}  Nc4 {[%clk 0:01:00]} 34. g4 {[%clk 0:00:59]}  Ne3 {[%clk 0:00:51]} 35. Bd3 {[%clk 0:00:52]}  Rg2+ {[%clk 0:00:49]} 36. Kh1 {[%clk 0:00:52]}  Ra2 {[%clk 0:00:50]} 37. Ra8 {[%clk 0:00:51]}  Nd1 {[%clk 0:00:43]} 38. Kg1 {[%clk 0:00:49]}  Nxc3 {[%clk 0:00:41]} 39. a5 {[%clk 0:00:49]}  Ne2+ {[%clk 0:00:39]} 40. Bxe2 {[%clk 0:00:46]}  Rxe2 {[%clk 0:00:39]} 41. a6 {[%clk 0:00:46]}  Ra2 {[%clk 0:00:38]} 42. h4 {[%clk 0:00:44]}  g5 {[%clk 0:00:31]} 43. hxg5 {[%clk 0:00:42]}  Bc4 {[%clk 0:00:30]} 44. a7 {[%clk 0:00:42]}  Ba6 {[%clk 0:00:25]} 45. Rg8+ {[%clk 0:00:36]}  Kxg8 {[%clk 0:00:14]} 46. a8=Q+ {[%clk 0:00:36]}  Kg7 {[%clk 0:00:13]} 47. Qxc6 {[%clk 0:00:36]}  Bc4 {[%clk 0:00:08]} 48. Qf6+ {[%clk 0:00:35]}  Kg8 {[%clk 0:00:08]} 49. Qxe5 {[%clk 0:00:36]}  Be6 {[%clk 0:00:07]} 50. c6 {[%clk 0:00:36]}  Rc2 {[%clk 0:00:07]} 51. c7 {[%clk 0:00:36]}  Kf8 {[%clk 0:00:05]} 52. Qf6 {[%clk 0:00:36]}  Kg8 {[%clk 0:00:02]} 53. f4 {[%clk 0:00:35]}  Bxg4 {[%clk 0:00:01]} 54. f5 {[%clk 0:00:34]} 1-0


[Site "https://www.chess.com"]

[Event "Titled Tuesday Blitz February 22 Late 2022"]
[White "Sarkar, Justin"]
[Black "Kostiukov, Alexandr"]
[WhiteFideId "2010011"]
[BlackFideId "14108100"]
[WhiteElo "2038"]
[BlackElo "2202"]
[Result "0-1"]
[Round "09"]
[TimeControl "180+1"]
[Date "2022.02.23"]
[WhiteClock "0:00:01"]
[BlackClock "0:00:03"]

1. e4 {[%clk 0:02:32]}  c5 {[%clk 0:02:59]} 2. Nf3 {[%clk 0:02:31]}  g6 {[%clk 0:02:58]} 3. d4 {[%clk 0:02:30]}  cxd4 {[%clk 0:02:59]} 4. Qxd4 {[%clk 0:02:29]}  Nf6 {[%clk 0:02:59]} 5. Bb5 {[%clk 0:02:29]}  a6 {[%clk 0:02:59]} 6. e5 {[%clk 0:02:28]}  axb5 {[%clk 0:02:56]} 7. exf6 {[%clk 0:02:27]}  exf6 {[%clk 0:02:49]} 8. O-O {[%clk 0:02:22]}  Nc6 {[%clk 0:02:48]} 9. Re1+ {[%clk 0:02:21]}  Be7 {[%clk 0:02:33]} 10. Qxf6 {[%clk 0:02:16]}  O-O {[%clk 0:02:33]} 11. Qf4 {[%clk 0:02:12]}  d5 {[%clk 0:02:24]} 12. Qh6 {[%clk 0:01:51]}  f6 {[%clk 0:01:57]} 13. c3 {[%clk 0:01:33]}  Bg4 {[%clk 0:01:50]} 14. Nbd2 {[%clk 0:01:21]}  b4 {[%clk 0:01:42]} 15. h3 {[%clk 0:01:16]}  Bf5 {[%clk 0:01:31]} 16. Nd4 {[%clk 0:00:52]}  Nxd4 {[%clk 0:01:29]} 17. cxd4 {[%clk 0:00:52]}  Rf7 {[%clk 0:01:22]} 18. Nf1 {[%clk 0:00:47]}  g5 {[%clk 0:01:14]} 19. h4 {[%clk 0:00:36]}  Bf8 {[%clk 0:00:50]} 20. Qh5 {[%clk 0:00:35]}  Bg6 {[%clk 0:00:50]} 21. Qg4 {[%clk 0:00:35]}  gxh4 {[%clk 0:00:47]} 22. Qxh4 {[%clk 0:00:32]}  Bg7 {[%clk 0:00:31]} 23. Bh6 {[%clk 0:00:31]}  Bh8 {[%clk 0:00:26]} 24. Ng3 {[%clk 0:00:31]}  b3 {[%clk 0:00:23]} 25. axb3 {[%clk 0:00:27]}  Rxa1 {[%clk 0:00:22]} 26. Rxa1 {[%clk 0:00:28]}  Re7 {[%clk 0:00:19]} 27. Qg4 {[%clk 0:00:21]}  Qe8 {[%clk 0:00:18]} 28. Kh2 {[%clk 0:00:11]}  Kf7 {[%clk 0:00:12]} 29. f3 {[%clk 0:00:10]}  Qd7 {[%clk 0:00:10]} 30. Qxd7 {[%clk 0:00:07]}  Rxd7 {[%clk 0:00:10]} 31. Ra8 {[%clk 0:00:06]}  Bg7 {[%clk 0:00:09]} 32. Bxg7 {[%clk 0:00:06]}  Kxg7 {[%clk 0:00:10]} 33. Rb8 {[%clk 0:00:06]}  Rc7 {[%clk 0:00:10]} 34. f4 {[%clk 0:00:06]}  Bf7 {[%clk 0:00:09]} 35. Nf5+ {[%clk 0:00:05]}  Kg6 {[%clk 0:00:10]} 36. Nd6 {[%clk 0:00:05]}  Be6 {[%clk 0:00:08]} 37. Rxb7 {[%clk 0:00:05]}  Rc2 {[%clk 0:00:08]} 38. Re7 {[%clk 0:00:03]}  Bf5 {[%clk 0:00:07]} 39. Nxf5 {[%clk 0:00:03]}  Kxf5 {[%clk 0:00:08]} 40. Rxh7 {[%clk 0:00:03]}  Rxb2 {[%clk 0:00:08]} 41. Rb7 {[%clk 0:00:02]}  Ke4 {[%clk 0:00:08]} 42. b4 {[%clk 0:00:02]}  Kxd4 {[%clk 0:00:08]} 43. b5 {[%clk 0:00:02]}  Kc5 {[%clk 0:00:08]} 44. Rf7 {[%clk 0:00:02]}  Kxb5 {[%clk 0:00:08]} 45. Rxf6 {[%clk 0:00:02]}  Kc5 {[%clk 0:00:09]} 46. Rf8 {[%clk 0:00:02]}  d4 {[%clk 0:00:09]} 47. Rc8+ {[%clk 0:00:02]}  Kd5 {[%clk 0:00:09]} 48. Kg3 {[%clk 0:00:03]}  Rb3+ {[%clk 0:00:08]} 49. Kg4 {[%clk 0:00:02]}  d3 {[%clk 0:00:08]} 50. Rd8+ {[%clk 0:00:02]}  Ke4 {[%clk 0:00:09]} 51. Kg5 {[%clk 0:00:02]}  Rb2 {[%clk 0:00:09]} 52. g4 {[%clk 0:00:02]}  Rb5+ {[%clk 0:00:08]} 53. f5 {[%clk 0:00:02]}  Rd5 {[%clk 0:00:08]} 54. Re8+ {[%clk 0:00:02]}  Kd4 {[%clk 0:00:07]} 55. Re1 {[%clk 0:00:02]}  d2 {[%clk 0:00:07]} 56. Rd1 {[%clk 0:00:02]}  Kd3 {[%clk 0:00:08]} 57. Kg6 {[%clk 0:00:02]}  Rd8 {[%clk 0:00:04]} 58. f6 {[%clk 0:00:01]}  Rg8+ {[%clk 0:00:04]} 59. Kf5 {[%clk 0:00:02]}  Ke3 {[%clk 0:00:02]} 60. g5 {[%clk 0:00:01]}  Rd8 {[%clk 0:00:02]} 61. Rxd2 {[%clk 0:00:02]}  Rd5+ {[%clk 0:00:02]} 62. Ke6 {[%clk 0:00:01]}  Ke4 {[%clk 0:00:03]} 0-1


[Site "https://www.chess.com"]

[Event "Titled Tuesday Blitz February 22 Late 2022"]
[White "Shirov, Alexei"]
[Black "Rosen, Eric"]
[WhiteFideId "2209390"]
[BlackFideId "2032562"]
[WhiteElo "2645"]
[BlackElo "2362"]
[Result "1-0"]
[Round "09"]
[TimeControl "180+1"]
[Date "2022.02.22"]
[WhiteClock "0:01:08"]
[BlackClock "0:00:02"]

1. d4 {[%clk 0:03:00]}  d5 {[%clk 0:02:52]} 2. c4 {[%clk 0:02:59]}  e6 {[%clk 0:02:52]} 3. Nc3 {[%clk 0:02:59]}  Nf6 {[%clk 0:02:52]} 4. cxd5 {[%clk 0:02:58]}  exd5 {[%clk 0:02:52]} 5. Bg5 {[%clk 0:02:58]}  c6 {[%clk 0:02:51]} 6. Qc2 {[%clk 0:02:54]}  h6 {[%clk 0:02:50]} 7. Bh4 {[%clk 0:02:53]}  Bd6 {[%clk 0:02:44]} 8. e3 {[%clk 0:02:50]}  O-O {[%clk 0:02:40]} 9. Bd3 {[%clk 0:02:50]}  Re8 {[%clk 0:02:40]} 10. Nge2 {[%clk 0:02:49]}  a5 {[%clk 0:02:38]} 11. a3 {[%clk 0:02:21]}  Na6 {[%clk 0:02:37]} 12. Bg3 {[%clk 0:02:11]}  Nc7 {[%clk 0:02:34]} 13. O-O {[%clk 0:02:04]}  Bxg3 {[%clk 0:02:26]} 14. Nxg3 {[%clk 0:02:02]}  Ne6 {[%clk 0:01:55]} 15. b4 {[%clk 0:02:01]}  h5 {[%clk 0:01:26]} 16. b5 {[%clk 0:01:59]}  h4 {[%clk 0:01:26]} 17. Nf5 {[%clk 0:01:58]}  Nh5 {[%clk 0:01:01]} 18. bxc6 {[%clk 0:01:56]}  bxc6 {[%clk 0:01:02]} 19. Ne2 {[%clk 0:01:49]}  Bd7 {[%clk 0:00:54]} 20. g4 {[%clk 0:01:48]}  hxg3 {[%clk 0:00:46]} 21. Nexg3 {[%clk 0:01:49]}  Nf6 {[%clk 0:00:25]} 22. f3 {[%clk 0:01:44]}  Ng5 {[%clk 0:00:25]} 23. Qg2 {[%clk 0:01:39]}  g6 {[%clk 0:00:20]} 24. h4 {[%clk 0:01:39]}  Ne6 {[%clk 0:00:17]} 25. Nd6 {[%clk 0:01:36]}  Rf8 {[%clk 0:00:12]} 26. h5 {[%clk 0:01:35]}  g5 {[%clk 0:00:12]} 27. Ngf5 {[%clk 0:01:34]}  Kh8 {[%clk 0:00:13]} 28. Qg3 {[%clk 0:01:31]}  Qc7 {[%clk 0:00:11]} 29. Qe5 {[%clk 0:01:30]}  Qd8 {[%clk 0:00:09]} 30. Kf2 {[%clk 0:01:27]}  Ng7 {[%clk 0:00:07]} 31. Nxg7 {[%clk 0:01:25]}  Nh7 {[%clk 0:00:01]} 32. Ne6+ {[%clk 0:01:19]}  f6 {[%clk 0:00:01]} 33. Nxd8 {[%clk 0:01:17]}  fxe5 {[%clk 0:00:01]} 34. N8f7+ {[%clk 0:01:18]}  Kg7 {[%clk 0:00:01]} 35. Nxe5 {[%clk 0:01:17]}  Be6 {[%clk 0:00:01]} 36. Rab1 {[%clk 0:01:16]}  Rab8 {[%clk 0:00:01]} 37. h6+ {[%clk 0:01:16]}  Kxh6 {[%clk 0:00:01]} 38. Rh1+ {[%clk 0:01:15]}  Kg7 {[%clk 0:00:01]} 39. Rxh7+ {[%clk 0:01:15]}  Kf6 {[%clk 0:00:02]} 40. Rh6+ {[%clk 0:01:09]}  Kg7 {[%clk 0:00:02]} 41. Rxe6 {[%clk 0:01:08]} 1-0


[Site "https://www.chess.com"]

[Event "Titled Tuesday Blitz February 22 Late 2022"]
[White "Sliwicki, Damian"]
[Black "Aradhya, Garg"]
[WhiteFideId "1127128"]
[BlackFideId "25006746"]
[WhiteElo "2084"]
[BlackElo "2169"]
[Result "0-1"]
[Round "09"]
[TimeControl "180+1"]
[Date "2022.02.23"]
[WhiteClock "0:00:01"]
[BlackClock "0:00:09"]

1. d4 {[%clk 0:03:00]}  d5 {[%clk 0:03:00]} 2. Bf4 {[%clk 0:03:00]}  c5 {[%clk 0:02:59]} 3. e3 {[%clk 0:02:55]}  Nc6 {[%clk 0:02:59]} 4. Nc3 {[%clk 0:02:54]}  cxd4 {[%clk 0:02:54]} 5. exd4 {[%clk 0:02:51]}  Bf5 {[%clk 0:02:53]} 6. Nf3 {[%clk 0:02:50]}  e6 {[%clk 0:02:53]} 7. Bd3 {[%clk 0:02:44]}  Bg6 {[%clk 0:02:46]} 8. O-O {[%clk 0:02:42]}  Bd6 {[%clk 0:02:46]} 9. Bxg6 {[%clk 0:02:04]}  Bxf4 {[%clk 0:02:40]} 10. Bd3 {[%clk 0:02:04]}  Nf6 {[%clk 0:02:39]} 11. Re1 {[%clk 0:02:01]}  O-O {[%clk 0:02:37]} 12. g3 {[%clk 0:01:49]}  Bd6 {[%clk 0:02:35]} 13. Ne5 {[%clk 0:01:41]}  Qb6 {[%clk 0:02:32]} 14. Nxc6 {[%clk 0:01:32]}  bxc6 {[%clk 0:02:31]} 15. Na4 {[%clk 0:01:24]}  Qc7 {[%clk 0:02:30]} 16. c3 {[%clk 0:01:18]}  Nd7 {[%clk 0:02:30]} 17. b4 {[%clk 0:01:18]}  e5 {[%clk 0:02:29]} 18. dxe5 {[%clk 0:01:13]}  Nxe5 {[%clk 0:02:29]} 19. Bc2 {[%clk 0:01:11]}  Rfe8 {[%clk 0:02:27]} 20. Kg2 {[%clk 0:01:05]}  Re7 {[%clk 0:02:24]} 21. Nb2 {[%clk 0:00:54]}  a5 {[%clk 0:02:23]} 22. b5 {[%clk 0:00:47]}  cxb5 {[%clk 0:02:09]} 23. Qxd5 {[%clk 0:00:46]}  Rd8 {[%clk 0:02:09]} 24. Rad1 {[%clk 0:00:40]}  Qxc3 {[%clk 0:02:04]} 25. Bb3 {[%clk 0:00:33]}  a4 {[%clk 0:01:54]} 26. Nd3 {[%clk 0:00:09]}  Bc7 {[%clk 0:00:47]} 27. Rxe5 {[%clk 0:00:06]}  Rxd5 {[%clk 0:00:44]} 28. Rxe7 {[%clk 0:00:04]}  Rd8 {[%clk 0:00:40]} 29. Rc1 {[%clk 0:00:04]}  Qxd3 {[%clk 0:00:30]} 30. Rd1 {[%clk 0:00:04]}  Qxd1 {[%clk 0:00:13]} 31. Bxd1 {[%clk 0:00:05]}  Kf8 {[%clk 0:00:13]} 32. Rxc7 {[%clk 0:00:04]}  Rxd1 {[%clk 0:00:13]} 33. Rb7 {[%clk 0:00:04]}  Rd2 {[%clk 0:00:13]} 34. Rxb5 {[%clk 0:00:04]}  Rxa2 {[%clk 0:00:14]} 35. Kf3 {[%clk 0:00:05]}  a3 {[%clk 0:00:14]} 36. h4 {[%clk 0:00:05]}  g6 {[%clk 0:00:13]} 37. Rb7 {[%clk 0:00:05]}  h5 {[%clk 0:00:13]} 38. Kf4 {[%clk 0:00:05]}  Rxf2+ {[%clk 0:00:12]} 39. Kg5 {[%clk 0:00:05]}  Rf3 {[%clk 0:00:12]} 40. g4 {[%clk 0:00:05]}  hxg4 {[%clk 0:00:12]} 41. Ra7 {[%clk 0:00:04]}  g3 {[%clk 0:00:11]} 42. h5 {[%clk 0:00:04]}  g2 {[%clk 0:00:11]} 43. Kh6 {[%clk 0:00:04]}  g1=Q {[%clk 0:00:11]} 44. Ra8+ {[%clk 0:00:04]}  Ke7 {[%clk 0:00:11]} 45. Kg7 {[%clk 0:00:04]}  Qd4+ {[%clk 0:00:10]} 46. Kg8 {[%clk 0:00:04]}  gxh5 {[%clk 0:00:10]} 47. Ra6 {[%clk 0:00:01]}  Rg3+ {[%clk 0:00:09]} 48. Kh7 {[%clk 0:00:01]}  Qe4+ {[%clk 0:00:09]} 0-1


[Site "https://www.chess.com"]

[Event "Titled Tuesday Blitz February 22 Late 2022"]
[White "Thomas, Anysia"]
[Black "Gerbelli Neto, Eduardo"]
[WhiteFideId "670472"]
[BlackFideId "2103281"]
[WhiteElo "2002"]
[BlackElo "2178"]
[Result "1-0"]
[Round "09"]
[TimeControl "180+1"]
[Date "2022.02.23"]
[WhiteClock "0:00:05"]
[BlackClock "0:00:01"]

1. d4 {[%clk 0:03:00]}  d5 {[%clk 0:02:59]} 2. c4 {[%clk 0:02:59]}  c6 {[%clk 0:02:59]} 3. Nf3 {[%clk 0:02:59]}  Nf6 {[%clk 0:02:59]} 4. e3 {[%clk 0:02:58]}  e6 {[%clk 0:02:59]} 5. b3 {[%clk 0:02:58]}  Nbd7 {[%clk 0:02:59]} 6. Bb2 {[%clk 0:02:58]}  Bd6 {[%clk 0:02:52]} 7. Be2 {[%clk 0:02:58]}  Qc7 {[%clk 0:02:50]} 8. O-O {[%clk 0:02:57]}  O-O {[%clk 0:02:49]} 9. Nbd2 {[%clk 0:02:56]}  e5 {[%clk 0:02:48]} 10. cxd5 {[%clk 0:02:54]}  cxd5 {[%clk 0:02:47]} 11. Rc1 {[%clk 0:02:53]}  Qb8 {[%clk 0:02:47]} 12. dxe5 {[%clk 0:02:37]}  Nxe5 {[%clk 0:02:47]} 13. Qc2 {[%clk 0:02:25]}  Be6 {[%clk 0:02:38]} 14. Nxe5 {[%clk 0:02:19]}  Bxe5 {[%clk 0:02:38]} 15. Bxe5 {[%clk 0:02:20]}  Qxe5 {[%clk 0:02:38]} 16. Nf3 {[%clk 0:02:20]}  Qe4 {[%clk 0:02:25]} 17. Bd3 {[%clk 0:02:16]}  Qg4 {[%clk 0:02:25]} 18. Qc7 {[%clk 0:02:07]}  b6 {[%clk 0:02:20]} 19. Qe5 {[%clk 0:01:52]}  Rac8 {[%clk 0:02:00]} 20. Rc7 {[%clk 0:01:35]}  Qb4 {[%clk 0:01:10]} 21. Rxa7 {[%clk 0:01:24]}  Bg4 {[%clk 0:01:05]} 22. Nd4 {[%clk 0:01:18]}  Qc3 {[%clk 0:01:02]} 23. Bf5 {[%clk 0:01:10]}  Rfe8 {[%clk 0:00:54]} 24. Qf4 {[%clk 0:00:59]}  Bxf5 {[%clk 0:00:50]} 25. Nxf5 {[%clk 0:00:55]}  Qb2 {[%clk 0:00:45]} 26. Nd6 {[%clk 0:00:53]}  Rc1 {[%clk 0:00:45]} 27. g3 {[%clk 0:00:18]}  Rxf1+ {[%clk 0:00:43]} 28. Kxf1 {[%clk 0:00:18]}  Qb1+ {[%clk 0:00:41]} 29. Kg2 {[%clk 0:00:18]}  Rf8 {[%clk 0:00:41]} 30. Nf5 {[%clk 0:00:16]}  Qe4+ {[%clk 0:00:24]} 31. Qxe4 {[%clk 0:00:16]}  dxe4 {[%clk 0:00:25]} 32. Rb7 {[%clk 0:00:14]}  Nd5 {[%clk 0:00:25]} 33. Nd4 {[%clk 0:00:12]}  Ra8 {[%clk 0:00:25]} 34. Rd7 {[%clk 0:00:12]}  Nb4 {[%clk 0:00:24]} 35. a4 {[%clk 0:00:11]}  Nd3 {[%clk 0:00:22]} 36. Rb7 {[%clk 0:00:11]}  g6 {[%clk 0:00:18]} 37. Rxb6 {[%clk 0:00:11]}  f5 {[%clk 0:00:18]} 38. Rc6 {[%clk 0:00:09]}  Rb8 {[%clk 0:00:18]} 39. Rc3 {[%clk 0:00:08]}  Rb4 {[%clk 0:00:14]} 40. a5 {[%clk 0:00:08]}  Rb7 {[%clk 0:00:11]} 41. a6 {[%clk 0:00:08]}  Ra7 {[%clk 0:00:11]} 42. Rc6 {[%clk 0:00:08]}  Nb4 {[%clk 0:00:10]} 43. Rc8+ {[%clk 0:00:06]}  Kg7 {[%clk 0:00:10]} 44. Ne6+ {[%clk 0:00:05]}  Kf6 {[%clk 0:00:10]} 45. Nc5 {[%clk 0:00:06]}  Nxa6 {[%clk 0:00:09]} 46. Rc6+ {[%clk 0:00:06]}  Ke5 {[%clk 0:00:09]} 47. Rxa6 {[%clk 0:00:07]}  Rc7 {[%clk 0:00:09]} 48. Na4 {[%clk 0:00:05]}  Rc2 {[%clk 0:00:09]} 49. Ra5+ {[%clk 0:00:06]}  Kd6 {[%clk 0:00:09]} 50. Rb5 {[%clk 0:00:05]}  Kc6 {[%clk 0:00:09]} 51. Rb6+ {[%clk 0:00:06]}  Kc7 {[%clk 0:00:10]} 52. Rf6 {[%clk 0:00:05]}  Rc1 {[%clk 0:00:04]} 53. Rf7+ {[%clk 0:00:05]}  Kd6 {[%clk 0:00:05]} 54. Rxh7 {[%clk 0:00:06]}  Rb1 {[%clk 0:00:05]} 55. Rb7 {[%clk 0:00:06]}  Kc6 {[%clk 0:00:05]} 56. Rb8 {[%clk 0:00:05]}  Kc7 {[%clk 0:00:05]} 57. Rb6 {[%clk 0:00:05]}  g5 {[%clk 0:00:04]} 58. h3 {[%clk 0:00:04]}  f4 {[%clk 0:00:04]} 59. gxf4 {[%clk 0:00:04]}  gxf4 {[%clk 0:00:05]} 60. exf4 {[%clk 0:00:05]}  Re1 {[%clk 0:00:03]} 61. Kg3 {[%clk 0:00:05]}  e3 {[%clk 0:00:03]} 62. fxe3 {[%clk 0:00:06]}  Rxe3+ {[%clk 0:00:04]} 63. Kg4 {[%clk 0:00:06]}  Re4 {[%clk 0:00:02]} 64. Rb5 {[%clk 0:00:06]}  Kc6 {[%clk 0:00:02]} 65. Re5 {[%clk 0:00:06]}  Rd4 {[%clk 0:00:01]} 66. Nc3 {[%clk 0:00:05]} 1-0


[Site "https://www.chess.com"]